[Event "*** Titled Tuesday Blitz"]
[Site "Chess.com"]
[Date "2019.06.04"]
[Round "9"]
[White "NMJeevanK"]
[Black "vladimirdamjanovic"]
[Result "0-1"]
[WhiteElo "2419"]
[BlackElo "2523"]
[TimeControl "180+2"]
[EndTime "15:08:26 PDT"]
[Termination "vladimirdamjanovic won by resignation"]

1. e4 {[%clk 0:03:01.9]} 1... c5 {[%clk 0:02:59.5]} 2. c3 {[%clk 0:03:01.6]}
2... d5 {[%clk 0:03:00.5]} 3. exd5 {[%clk 0:03:02.7]} 3... Nf6 {[%clk
0:03:02.1]} 4. Nf3 {[%clk 0:03:04.5]} 4... Nxd5 {[%clk 0:03:02.5]} 5. d4 {[%clk
0:03:06.4]} 5... cxd4 {[%clk 0:03:03.7]} 6. cxd4 {[%clk 0:03:08.2]} 6... Nc6
{[%clk 0:03:05.1]} 7. Nc3 {[%clk 0:03:09.7]} 7... e6 {[%clk 0:03:06.6]} 8. Bd3
{[%clk 0:03:10.9]} 8... Be7 {[%clk 0:03:07.8]} 9. O-O {[%clk 0:03:12.3]} 9... b6
{[%clk 0:03:09.4]} 10. Re1 {[%clk 0:03:13.5]} 10... Bb7 {[%clk 0:03:09.9]} 11.
Bd2 {[%clk 0:03:12.8]} 11... O-O {[%clk 0:02:58.8]} 12. Rc1 {[%clk 0:03:13.5]}
12... Rc8 {[%clk 0:02:59.3]} 13. Bb1 {[%clk 0:03:13.9]} 13... Nf6 {[%clk
0:02:45.1]} 14. Be3 {[%clk 0:03:11.2]} 14... Nb4 {[%clk 0:02:42]} 15. Ne5 {[%clk
0:03:05.6]} 15... Nbd5 {[%clk 0:02:41.5]} 16. Bg5 {[%clk 0:02:59.5]} 16... Nxc3
{[%clk 0:02:30.3]} 17. bxc3 {[%clk 0:02:53.6]} 17... Nd5 {[%clk 0:02:14.1]} 18.
Bd2 {[%clk 0:02:45.4]} 18... f5 {[%clk 0:01:35.6]} 19. c4 {[%clk 0:02:44]} 19...
Nf6 {[%clk 0:01:34.7]} 20. Bg5 {[%clk 0:02:41.4]} 20... Ne4 {[%clk 0:01:25.2]}
21. Bxe4 {[%clk 0:02:40.8]} 21... Bxe4 {[%clk 0:01:19.9]} 22. Bxe7 {[%clk
0:02:41.3]} 22... Qxe7 {[%clk 0:01:21.8]} 23. f3 {[%clk 0:02:42.1]} 23... Bb7
{[%clk 0:01:20.4]} 24. Qa4 {[%clk 0:02:36.5]} 24... Qd6 {[%clk 0:01:08]} 25.
Qxa7 {[%clk 0:02:33.7]} 25... Qxd4+ {[%clk 0:01:02.3]} 26. Kh1 {[%clk
0:02:34.4]} 26... Rc7 {[%clk 0:00:59.3]} 27. Rcd1 {[%clk 0:02:23.3]} 27... Qf2
{[%clk 0:00:49.6]} 28. Qa3 {[%clk 0:02:06.6]} 28... Qc5 {[%clk 0:00:35.2]} 29.
Qb2 {[%clk 0:01:43.6]} 29... Re8 {[%clk 0:00:28.7]} 30. Nd3 {[%clk 0:01:31.7]}
30... Qa5 {[%clk 0:00:16]} 31. Nf4 {[%clk 0:01:33]} 31... Rce7 {[%clk
0:00:09.8]} 32. Re5 {[%clk 0:01:29.4]} 32... Qa8 {[%clk 0:00:06.9]} 33. Qxb6
{[%clk 0:01:27.2]} 33... Bxf3 {[%clk 0:00:07]} 34. Rde1 {[%clk 0:01:22.9]} 34...
Be4 {[%clk 0:00:07.1]} 35. Qb2 {[%clk 0:01:20.4]} 35... Qc6 {[%clk 0:00:06.7]}
36. Rc1 {[%clk 0:01:07.5]} 36... Qd6 {[%clk 0:00:06.9]} 37. Nh5 {[%clk
0:00:56.2]} 37... Rd8 {[%clk 0:00:04.5]} 38. h3 {[%clk 0:00:51.3]} 38... Qd2
{[%clk 0:00:04.7]} 39. Qxd2 {[%clk 0:00:36.8]} 39... Rxd2 {[%clk 0:00:06.6]} 40.
Nf4 {[%clk 0:00:38.4]} 40... Ra7 {[%clk 0:00:05.1]} 41. Rxe6 {[%clk 0:00:25.1]}
41... Raxa2 {[%clk 0:00:05.6]} 42. h4 {[%clk 0:00:15]} 42... Bxg2+ {[%clk
0:00:05.3]} 43. Kg1 {[%clk 0:00:11.1]} 43... Be4 {[%clk 0:00:06.2]} 44. c5
{[%clk 0:00:11.6]} 44... Rh2 {[%clk 0:00:06.2]} 45. Rxe4 {[%clk 0:00:11.7]}
45... fxe4 {[%clk 0:00:08.1]} 46. c6 {[%clk 0:00:13.1]} 46... Rhc2 {[%clk
0:00:09.3]} 47. Re1 {[%clk 0:00:10.4]} 47... Rxc6 {[%clk 0:00:09.9]} 48. Nd5
{[%clk 0:00:11.7]} 48... Rd6 {[%clk 0:00:10.5]} 49. Ne7+ {[%clk 0:00:12.1]}
49... Kf7 {[%clk 0:00:11.9]} 50. Rxe4 {[%clk 0:00:12.5]} 50... Re6 {[%clk
0:00:12.2]} 51. Rxe6 {[%clk 0:00:10.7]} 51... Kxe6 {[%clk 0:00:14.1]} 52. Nc6
{[%clk 0:00:11.7]} 52... Rd2 {[%clk 0:00:15.2]} 53. Kf1 {[%clk 0:00:10.6]} 53...
Kf5 {[%clk 0:00:15.9]} 54. Ke1 {[%clk 0:00:11.5]} 54... Rh2 {[%clk 0:00:16.5]}
55. Nd4+ {[%clk 0:00:12.9]} 55... Kg4 {[%clk 0:00:17.3]} 56. Kf1 {[%clk
0:00:14.4]} 56... Rd2 {[%clk 0:00:16.8]} 57. Ne2 {[%clk 0:00:15.1]} 57... Rxe2
{[%clk 0:00:17.5]} 58. Kxe2 {[%clk 0:00:16.3]} 58... Kxh4 {[%clk 0:00:19.2]} 59.
Kf3 {[%clk 0:00:18.2]} 59... g5 {[%clk 0:00:20.3]} 60. Kg2 {[%clk 0:00:20.1]}
60... g4 {[%clk 0:00:21.8]} 61. Kh2 {[%clk 0:00:22]} 61... g3+ {[%clk
0:00:23.4]} 62. Kg2 {[%clk 0:00:23.9]} 62... Kg4 {[%clk 0:00:25.1]} 63. Kh1
{[%clk 0:00:25.8]} 63... h5 {[%clk 0:00:26.4]} 64. Kg1 {[%clk 0:00:27.7]} 64...
Kf3 {[%clk 0:00:27.6]} 65. Kh1 {[%clk 0:00:29.6]} 65... Kg4 {[%clk 0:00:27.5]}
66. Kg1 {[%clk 0:00:31.5]} 66... Kh3 {[%clk 0:00:27.4]} 67. Kh1 {[%clk
0:00:33.4]} 67... g2+ {[%clk 0:00:27]} 68. Kg1 {[%clk 0:00:34.8]} 0-1

[Event "*** Titled Tuesday Blitz"]
[Site "Chess.com"]
[Date "2019.06.04"]
[Round "9"]
[White "Thjop"]
[Black "WPWPWP-2015"]
[Result "1-0"]
[WhiteElo "2581"]
[BlackElo "2426"]
[TimeControl "180+2"]
[EndTime "15:08:27 PDT"]
[Termination "Thjop won by resignation"]

1. e4 {[%clk 0:03:01.9]} 1... c5 {[%clk 0:03:00.1]} 2. Nf3 {[%clk 0:03:02.3]}
2... d6 {[%clk 0:03:01.1]} 3. Bb5+ {[%clk 0:03:02.9]} 3... Nd7 {[%clk
0:03:00.6]} 4. O-O {[%clk 0:03:03.3]} 4... a6 {[%clk 0:02:59.3]} 5. Bd3 {[%clk
0:03:03.8]} 5... Ngf6 {[%clk 0:02:59.3]} 6. Re1 {[%clk 0:03:05.2]} 6... e5
{[%clk 0:02:52.8]} 7. a4 {[%clk 0:03:03.9]} 7... Be7 {[%clk 0:02:49.8]} 8. Nc3
{[%clk 0:03:01.8]} 8... O-O {[%clk 0:02:49.9]} 9. Bc4 {[%clk 0:03:02.6]} 9... b6
{[%clk 0:02:48.7]} 10. d3 {[%clk 0:03:02.5]} 10... Bb7 {[%clk 0:02:47.9]} 11.
Nh4 {[%clk 0:02:54.7]} 11... Re8 {[%clk 0:02:44.3]} 12. Nf5 {[%clk 0:02:54.8]}
12... Bf8 {[%clk 0:02:45.2]} 13. Qf3 {[%clk 0:02:52.8]} 13... Be7 {[%clk
0:02:25.7]} 14. Bh6 {[%clk 0:02:37.5]} 14... g6 {[%clk 0:02:16.1]} 15. Nxe7+
{[%clk 0:01:54.1]} 15... Qxe7 {[%clk 0:02:15.6]} 16. Bg5 {[%clk 0:01:45]} 16...
Rac8 {[%clk 0:01:42.4]} 17. Bd5 {[%clk 0:01:40.2]} 17... h6 {[%clk 0:01:14.5]}
18. Bxb7 {[%clk 0:01:36.8]} 18... hxg5 {[%clk 0:01:13.3]} 19. Bxc8 {[%clk
0:01:37.6]} 19... Rxc8 {[%clk 0:01:14]} 20. Qe3 {[%clk 0:01:31.2]} 20... Nh5
{[%clk 0:01:10.4]} 21. g3 {[%clk 0:01:31.3]} 21... Ng7 {[%clk 0:01:05.4]} 22.
Nd5 {[%clk 0:01:31.7]} 22... Qd8 {[%clk 0:01:05.9]} 23. c3 {[%clk 0:01:32.2]}
23... Ne6 {[%clk 0:01:03.1]} 24. Rac1 {[%clk 0:01:30.2]} 24... Kg7 {[%clk
0:00:57]} 25. b4 {[%clk 0:01:30.7]} 25... Qh8 {[%clk 0:00:41.6]} 26. Kg2 {[%clk
0:01:23]} 26... g4 {[%clk 0:00:41.1]} 27. f4 {[%clk 0:01:08.6]} 27... Qh3+
{[%clk 0:00:39]} 28. Kg1 {[%clk 0:01:08.7]} 28... Rh8 {[%clk 0:00:38.5]} 29. Re2
{[%clk 0:01:07.9]} 29... Qh5 {[%clk 0:00:28.4]} 30. Rf1 {[%clk 0:01:07.2]} 30...
f5 {[%clk 0:00:18]} 31. Qf2 {[%clk 0:00:46.5]} 31... Rf8 {[%clk 0:00:16.5]} 32.
Qg2 {[%clk 0:00:44.9]} 32... Qh6 {[%clk 0:00:14]} 33. exf5 {[%clk 0:00:45.4]}
33... gxf5 {[%clk 0:00:11.3]} 34. Nxb6 {[%clk 0:00:37.7]} 34... Nf6 {[%clk
0:00:08]} 35. Nd5 {[%clk 0:00:35.6]} 35... Nh5 {[%clk 0:00:07.7]} 36. fxe5
{[%clk 0:00:29]} 36... f4 {[%clk 0:00:06.4]} 37. gxf4 {[%clk 0:00:27.2]} 37...
Nhxf4 {[%clk 0:00:04.9]} 38. Nxf4 {[%clk 0:00:26.1]} 38... Nxf4 {[%clk
0:00:04.1]} 39. Qxg4+ {[%clk 0:00:21.3]} 39... Kh8 {[%clk 0:00:05.2]} 40. Rxf4
{[%clk 0:00:22.1]} 40... Rg8 {[%clk 0:00:05.4]} 41. Qxg8+ {[%clk 0:00:22.4]}
41... Kxg8 {[%clk 0:00:06.3]} 42. Rg4+ {[%clk 0:00:23]} 42... Kf8 {[%clk
0:00:06]} 43. e6 {[%clk 0:00:21.6]} 43... Qc1+ {[%clk 0:00:05.3]} 44. Kg2 {[%clk
0:00:20.8]} 44... Ke7 {[%clk 0:00:03.4]} 45. Rg7+ {[%clk 0:00:21.3]} 45... Kf6
{[%clk 0:00:04.5]} 46. e7 {[%clk 0:00:21.6]} 46... Kxg7 {[%clk 0:00:02.9]} 47.
e8=Q {[%clk 0:00:22.3]} 47... Qg5+ {[%clk 0:00:04.6]} 48. Kf3 {[%clk 0:00:19]}
48... Qf5+ {[%clk 0:00:05.6]} 49. Ke3 {[%clk 0:00:17.6]} 49... Qg5+ {[%clk
0:00:06.9]} 50. Ke4 {[%clk 0:00:10.4]} 50... d5+ {[%clk 0:00:07.7]} 51. Kf3
{[%clk 0:00:11.5]} 51... Qf5+ {[%clk 0:00:09]} 52. Kg3 {[%clk 0:00:12.6]} 52...
Qg5+ {[%clk 0:00:10.2]} 53. Kf2 {[%clk 0:00:13.7]} 53... Qf4+ {[%clk 0:00:11]}
54. Kg1 {[%clk 0:00:14.9]} 54... Qc1+ {[%clk 0:00:08]} 55. Re1 {[%clk 0:00:15]}
55... Qg5+ {[%clk 0:00:07.8]} 56. Kh1 {[%clk 0:00:16.1]} 56... Qg2+ {[%clk
0:00:04]} 57. Kxg2 {[%clk 0:00:16.4]} 1-0

[Event "*** Titled Tuesday Blitz"]
[Site "Chess.com"]
[Date "2019.06.04"]
[Round "9"]
[White "gena217"]
[Black "Grandelicious"]
[Result "1-0"]
[WhiteElo "2902"]
[BlackElo "2776"]
[TimeControl "180+2"]
[EndTime "15:08:30 PDT"]
[Termination "gena217 won by checkmate"]

1. e4 {[%clk 0:03:01.9]} 1... c5 {[%clk 0:03:00.7]} 2. Nf3 {[%clk 0:03:03.5]}
2... Nc6 {[%clk 0:03:01.7]} 3. Bb5 {[%clk 0:03:03.6]} 3... g6 {[%clk 0:03:02.7]}
4. Bxc6 {[%clk 0:03:04.7]} 4... dxc6 {[%clk 0:03:04.6]} 5. d3 {[%clk 0:03:05.6]}
5... Bg7 {[%clk 0:03:03.9]} 6. h3 {[%clk 0:03:07.3]} 6... Nf6 {[%clk 0:03:05.2]}
7. Nc3 {[%clk 0:03:08.1]} 7... Nd7 {[%clk 0:03:01.6]} 8. Be3 {[%clk 0:03:08.8]}
8... b6 {[%clk 0:03:01.6]} 9. Qd2 {[%clk 0:03:09.5]} 9... h6 {[%clk 0:03:02.8]}
10. O-O {[%clk 0:03:09.4]} 10... e5 {[%clk 0:03:03.9]} 11. Nh2 {[%clk
0:03:10.1]} 11... Nf8 {[%clk 0:03:05.1]} 12. f4 {[%clk 0:03:10.9]} 12... exf4
{[%clk 0:03:07]} 13. Bxf4 {[%clk 0:03:12.5]} 13... Ne6 {[%clk 0:03:08.4]} 14.
Bg3 {[%clk 0:03:14.1]} 14... Qg5 {[%clk 0:03:08.6]} 15. Qe1 {[%clk 0:03:10.9]}
15... Nd4 {[%clk 0:03:02.4]} 16. Nf3 {[%clk 0:03:01.4]} 16... Nxf3+ {[%clk
0:02:52.7]} 17. Rxf3 {[%clk 0:03:02]} 17... Be6 {[%clk 0:02:50.3]} 18. e5 {[%clk
0:03:01.9]} 18... O-O-O {[%clk 0:02:27.6]} 19. Ne4 {[%clk 0:03:02.3]} 19... Qe7
{[%clk 0:02:29.1]} 20. Nd6+ {[%clk 0:02:36.9]} 20... Kb8 {[%clk 0:02:00.9]} 21.
Nxf7 {[%clk 0:02:36.5]} 21... Rdf8 {[%clk 0:02:00.7]} 22. Nxh8 {[%clk
0:02:36.2]} 22... Rxf3 {[%clk 0:02:00.1]} 23. Nxg6 {[%clk 0:02:27.5]} 23... Qg5
{[%clk 0:01:57.2]} 24. gxf3 {[%clk 0:02:27.5]} 24... Qxg6 {[%clk 0:01:58.6]} 25.
Kh2 {[%clk 0:02:24.6]} 25... Qf5 {[%clk 0:01:41.9]} 26. Qf1 {[%clk 0:02:21.5]}
26... Bxe5 {[%clk 0:01:42.4]} 27. Qg2 {[%clk 0:02:23.1]} 27... Kb7 {[%clk
0:01:36.2]} 28. c3 {[%clk 0:02:05.4]} 28... Bxg3+ {[%clk 0:01:25.4]} 29. Qxg3
{[%clk 0:02:07.3]} 29... Qxd3 {[%clk 0:01:26.9]} 30. Rg1 {[%clk 0:01:41.5]}
30... Bd5 {[%clk 0:01:19.1]} 31. Qf2 {[%clk 0:01:23.5]} 31... Bxa2 {[%clk
0:01:07.4]} 32. f4 {[%clk 0:01:21.9]} 32... Be6 {[%clk 0:01:02.9]} 33. Rg3
{[%clk 0:01:17.9]} 33... Qf5 {[%clk 0:01:02.6]} 34. Re3 {[%clk 0:01:16.1]} 34...
a5 {[%clk 0:00:57.4]} 35. Qf3 {[%clk 0:01:12.8]} 35... Bd5 {[%clk 0:00:52.8]}
36. Qg4 {[%clk 0:01:09.2]} 36... Qb1 {[%clk 0:00:49.3]} 37. Re2 {[%clk
0:00:51.4]} 37... h5 {[%clk 0:00:45.7]} 38. Qxh5 {[%clk 0:00:45.2]} 38... Qf1
{[%clk 0:00:41.2]} 39. Qh7+ {[%clk 0:00:35.7]} 39... Ka6 {[%clk 0:00:39.6]} 40.
Qd3+ {[%clk 0:00:37]} 40... c4 {[%clk 0:00:38.7]} 41. Qe3 {[%clk 0:00:38.2]}
41... Kb5 {[%clk 0:00:26.9]} 42. Rf2 {[%clk 0:00:37.8]} 42... Qh1+ {[%clk
0:00:27]} 43. Kg3 {[%clk 0:00:39.4]} 43... Qg1+ {[%clk 0:00:26.4]} 44. Kh4
{[%clk 0:00:40.8]} 44... Qg8 {[%clk 0:00:20.6]} 45. f5 {[%clk 0:00:39.4]} 45...
Qh7+ {[%clk 0:00:21.5]} 46. Kg3 {[%clk 0:00:40]} 46... Qg7+ {[%clk 0:00:20.2]}
47. Kh2 {[%clk 0:00:40.6]} 47... Qf6 {[%clk 0:00:21.6]} 48. Qd4 {[%clk
0:00:36.6]} 48... Qd6+ {[%clk 0:00:20.3]} 49. Qf4 {[%clk 0:00:38.2]} 49... Qf6
{[%clk 0:00:21.5]} 50. h4 {[%clk 0:00:34.2]} 50... Ka4 {[%clk 0:00:21.8]} 51. h5
{[%clk 0:00:29.3]} 51... Qf7 {[%clk 0:00:16.7]} 52. Qg4 {[%clk 0:00:23.3]} 52...
Qc7+ {[%clk 0:00:17]} 53. Kh3 {[%clk 0:00:22.4]} 53... Qe5 {[%clk 0:00:15.8]}
54. Qf4 {[%clk 0:00:18.5]} 54... Qe1 {[%clk 0:00:15.8]} 55. f6 {[%clk 0:00:18]}
55... Be6+ {[%clk 0:00:16.1]} 56. Kh4 {[%clk 0:00:18.3]} 56... Qh1+ {[%clk
0:00:15.3]} 57. Kg5 {[%clk 0:00:19.5]} 57... Bf7 {[%clk 0:00:17.2]} 58. Qg4
{[%clk 0:00:17.7]} 58... Bxh5 {[%clk 0:00:14.8]} 59. Qxc4# {[%clk 0:00:16]} 1-0

[Event "*** Titled Tuesday Blitz"]
[Site "Chess.com"]
[Date "2019.06.04"]
[Round "9"]
[White "MarianPetrov"]
[Black "awesomevishesh"]
[Result "1/2-1/2"]
[WhiteElo "2618"]
[BlackElo "2458"]
[TimeControl "180+2"]
[EndTime "15:08:35 PDT"]
[Termination "Game drawn by agreement"]

1. e4 {[%clk 0:03:01.9]} 1... c5 {[%clk 0:03:00]} 2. c3 {[%clk 0:03:00.8]} 2...
Nf6 {[%clk 0:02:59.8]} 3. e5 {[%clk 0:03:01.8]} 3... Nd5 {[%clk 0:03:00.9]} 4.
d4 {[%clk 0:03:03.6]} 4... cxd4 {[%clk 0:03:01.5]} 5. cxd4 {[%clk 0:03:05.5]}
5... d6 {[%clk 0:03:01.3]} 6. Nf3 {[%clk 0:03:07]} 6... Nc6 {[%clk 0:03:01.7]}
7. Bc4 {[%clk 0:03:07.8]} 7... dxe5 {[%clk 0:03:02.2]} 8. dxe5 {[%clk 0:03:09]}
8... Ndb4 {[%clk 0:03:02.6]} 9. Qb3 {[%clk 0:03:09.7]} 9... e6 {[%clk
0:03:01.6]} 10. O-O {[%clk 0:03:10]} 10... Na5 {[%clk 0:03:01.3]} 11. Bb5+
{[%clk 0:03:10.6]} 11... Bd7 {[%clk 0:02:40.5]} 12. Qa4 {[%clk 0:03:11.4]} 12...
Bxb5 {[%clk 0:02:20.6]} 13. Qxb5+ {[%clk 0:03:09.2]} 13... Nac6 {[%clk
0:02:20.1]} 14. Nc3 {[%clk 0:02:50]} 14... a6 {[%clk 0:02:19.3]} 15. Qc4 {[%clk
0:02:50.4]} 15... Qd3 {[%clk 0:02:18.3]} 16. Qg4 {[%clk 0:02:47.9]} 16... Qg6
{[%clk 0:02:16.1]} 17. Qxg6 {[%clk 0:02:36.8]} 17... hxg6 {[%clk 0:02:16.1]} 18.
Rd1 {[%clk 0:02:34.9]} 18... Rd8 {[%clk 0:01:58.5]} 19. Rxd8+ {[%clk 0:02:09]}
19... Kxd8 {[%clk 0:01:58.9]} 20. Be3 {[%clk 0:02:10]} 20... Kc7 {[%clk
0:01:20]} 21. Rd1 {[%clk 0:02:04]} 21... Be7 {[%clk 0:01:06.2]} 22. a3 {[%clk
0:02:04]} 22... Nc2 {[%clk 0:01:06.3]} 23. Bf4 {[%clk 0:01:56.3]} 23... Rd8
{[%clk 0:01:05.5]} 24. Rxd8 {[%clk 0:01:43.9]} 24... Kxd8 {[%clk 0:01:00]} 25.
Ne4 {[%clk 0:01:26.9]} 25... N2d4 {[%clk 0:00:56.3]} 26. Nxd4 {[%clk 0:01:16]}
26... Nxd4 {[%clk 0:00:57.4]} 27. Be3 {[%clk 0:01:11.2]} 27... Nc6 {[%clk
0:00:57.7]} 28. f4 {[%clk 0:01:10.5]} 28... Kc7 {[%clk 0:00:53.6]} 29. Kf2
{[%clk 0:01:06.7]} 29... Na5 {[%clk 0:00:54.2]} 30. Ke2 {[%clk 0:01:00.9]} 30...
Kc6 {[%clk 0:00:48.3]} 31. Kd3 {[%clk 0:01:00.8]} 31... b5 {[%clk 0:00:46.9]}
32. Bd4 {[%clk 0:00:33.8]} 32... Nc4 {[%clk 0:00:42.1]} 33. a4 {[%clk
0:00:24.1]} 33... Kd5 {[%clk 0:00:29.6]} 34. axb5 {[%clk 0:00:22.3]} 34... axb5
{[%clk 0:00:30.8]} 35. Nc3+ {[%clk 0:00:17.5]} 35... Kc6 {[%clk 0:00:31.4]} 36.
Ne4 {[%clk 0:00:15.1]} 36... Kd5 {[%clk 0:00:30.6]} 37. b3 {[%clk 0:00:12.1]}
37... Na5 {[%clk 0:00:26.4]} 38. Nc3+ {[%clk 0:00:12]} 38... Kc6 {[%clk
0:00:26.3]} 39. Kc2 {[%clk 0:00:13.1]} 39... b4 {[%clk 0:00:18.2]} 40. Ne2
{[%clk 0:00:07.3]} 40... Kd5 {[%clk 0:00:17.7]} 41. Bb6 {[%clk 0:00:08.1]} 41...
Nc6 {[%clk 0:00:17.8]} 42. Kd3 {[%clk 0:00:09.1]} 42... g5 {[%clk 0:00:16.2]}
43. g3 {[%clk 0:00:09.5]} 43... gxf4 {[%clk 0:00:15.8]} 44. gxf4 {[%clk
0:00:10]} 44... g5 {[%clk 0:00:16.1]} 45. Be3 {[%clk 0:00:07.3]} 45... gxf4
{[%clk 0:00:15.9]} 46. Nxf4+ {[%clk 0:00:05.9]} 46... Kxe5 {[%clk 0:00:15.8]}
47. Ng2 {[%clk 0:00:05.4]} 47... f5 {[%clk 0:00:10]} 48. Bf4+ {[%clk 0:00:04.7]}
48... Kf6 {[%clk 0:00:09.4]} 49. Kc4 {[%clk 0:00:06]} 49... e5 {[%clk
0:00:09.2]} 50. Be3 {[%clk 0:00:06.6]} 50... f4 {[%clk 0:00:09.6]} 51. Bxf4
{[%clk 0:00:07.9]} 51... exf4 {[%clk 0:00:10.4]} 52. Nxf4 {[%clk 0:00:09.5]}
52... Ne5+ {[%clk 0:00:11.2]} 53. Kb5 {[%clk 0:00:09.8]} 53... Ng4 {[%clk
0:00:09.8]} 54. Nd5+ {[%clk 0:00:10.4]} 54... Ke6 {[%clk 0:00:08.8]} 55. Nxe7
{[%clk 0:00:11.4]} 55... Kxe7 {[%clk 0:00:10.1]} 56. Kxb4 {[%clk 0:00:12.7]}
56... Nxh2 {[%clk 0:00:11]} 57. Kc5 {[%clk 0:00:13.6]} 57... Kd7 {[%clk
0:00:12.1]} 58. b4 {[%clk 0:00:14.2]} 1/2-1/2

[Event "*** Titled Tuesday Blitz"]
[Site "Chess.com"]
[Date "2019.06.04"]
[Round "9"]
[White "Polish_fighter3000"]
[Black "severomorskij"]
[Result "1/2-1/2"]
[WhiteElo "3011"]
[BlackElo "2808"]
[TimeControl "180+2"]
[EndTime "15:09:26 PDT"]
[Termination "Game drawn by repetition"]

1. e4 {[%clk 0:03:01.9]} 1... c5 {[%clk 0:03:00.5]} 2. Nf3 {[%clk 0:03:02.8]}
2... Nc6 {[%clk 0:03:01.7]} 3. Bb5 {[%clk 0:02:55.7]} 3... d6 {[%clk 0:03:02.2]}
4. O-O {[%clk 0:02:55.2]} 4... Bd7 {[%clk 0:03:02.5]} 5. Re1 {[%clk 0:02:55.4]}
5... Nf6 {[%clk 0:03:02.6]} 6. c3 {[%clk 0:02:55.5]} 6... a6 {[%clk 0:03:03.9]}
7. Bf1 {[%clk 0:02:56.7]} 7... Bg4 {[%clk 0:03:03]} 8. h3 {[%clk 0:02:58.1]}
8... Bxf3 {[%clk 0:03:03.3]} 9. Qxf3 {[%clk 0:03:00]} 9... e6 {[%clk 0:02:59.8]}
10. d3 {[%clk 0:02:54.7]} 10... Be7 {[%clk 0:03:00.4]} 11. Be3 {[%clk
0:02:52.8]} 11... d5 {[%clk 0:02:47.8]} 12. Bf4 {[%clk 0:02:52.4]} 12... O-O
{[%clk 0:02:47.2]} 13. Nd2 {[%clk 0:02:52.9]} 13... b5 {[%clk 0:02:47.8]} 14. h4
{[%clk 0:02:36.2]} 14... b4 {[%clk 0:02:31.6]} 15. e5 {[%clk 0:02:27.1]} 15...
Nd7 {[%clk 0:02:29.4]} 16. g3 {[%clk 0:02:27.7]} 16... bxc3 {[%clk 0:02:11.5]}
17. bxc3 {[%clk 0:02:28.5]} 17... Rb8 {[%clk 0:02:12]} 18. Qd1 {[%clk
0:02:27.9]} 18... Qa5 {[%clk 0:02:10.4]} 19. Qc2 {[%clk 0:02:25.7]} 19... Qa3
{[%clk 0:02:02.1]} 20. Nf3 {[%clk 0:02:02.4]} 20... Rb2 {[%clk 0:01:47.2]} 21.
Qc1 {[%clk 0:02:03.5]} 21... Rfb8 {[%clk 0:01:42.8]} 22. Re2 {[%clk 0:02:03]}
22... c4 {[%clk 0:01:13.8]} 23. dxc4 {[%clk 0:01:48.8]} 23... Rxe2 {[%clk
0:00:47.4]} 24. Bxe2 {[%clk 0:01:37.4]} 24... Nb6 {[%clk 0:00:36.5]} 25. cxd5
{[%clk 0:01:20.2]} 25... Nxd5 {[%clk 0:00:37]} 26. Bd2 {[%clk 0:01:21.6]} 26...
Qxc1+ {[%clk 0:00:27.8]} 27. Rxc1 {[%clk 0:01:23.5]} 27... Rb2 {[%clk 0:00:27]}
28. Bxa6 {[%clk 0:01:10.1]} 28... Nxe5 {[%clk 0:00:20]} 29. Nxe5 {[%clk
0:01:12]} 29... Rxd2 {[%clk 0:00:21]} 30. Bc4 {[%clk 0:01:08.9]} 30... Bc5
{[%clk 0:00:18]} 31. Nd3 {[%clk 0:01:04.3]} 31... Ba7 {[%clk 0:00:18.4]} 32. a4
{[%clk 0:00:41.3]} 32... g6 {[%clk 0:00:16]} 33. Kf1 {[%clk 0:00:38.2]} 33...
Bxf2 {[%clk 0:00:15.9]} 34. Bxd5 {[%clk 0:00:27.3]} 34... Rxd3 {[%clk
0:00:16.7]} 35. Kxf2 {[%clk 0:00:19.6]} 35... Rxd5 {[%clk 0:00:14.5]} 36. Ra1
{[%clk 0:00:19.9]} 36... Ra5 {[%clk 0:00:14.6]} 37. Ke3 {[%clk 0:00:21.4]} 37...
Kf8 {[%clk 0:00:14.9]} 38. Kd4 {[%clk 0:00:22]} 38... Ke7 {[%clk 0:00:15.5]} 39.
c4 {[%clk 0:00:16.4]} 39... Kd6 {[%clk 0:00:14.8]} 40. Kc3 {[%clk 0:00:16.6]}
40... Kc5 {[%clk 0:00:15.3]} 41. Kb3 {[%clk 0:00:17.1]} 41... e5 {[%clk
0:00:13.6]} 42. Rd1 {[%clk 0:00:14.1]} 42... f6 {[%clk 0:00:08.4]} 43. Rd5+
{[%clk 0:00:08.8]} 43... Kb6 {[%clk 0:00:09]} 44. Rxa5 {[%clk 0:00:05.7]} 44...
Kxa5 {[%clk 0:00:09.8]} 45. c5 {[%clk 0:00:07.6]} 45... e4 {[%clk 0:00:08.5]}
46. Kc4 {[%clk 0:00:08.6]} 46... f5 {[%clk 0:00:09.7]} 47. Kd4 {[%clk
0:00:08.1]} 47... Ka6 {[%clk 0:00:08.7]} 48. Ke3 {[%clk 0:00:06.9]} 48... Ka5
{[%clk 0:00:09.2]} 49. Ke2 {[%clk 0:00:07.7]} 49... Ka6 {[%clk 0:00:08.9]} 50.
Ke3 {[%clk 0:00:09.1]} 50... Ka5 {[%clk 0:00:08.9]} 51. Kd4 {[%clk 0:00:05.1]}
51... h5 {[%clk 0:00:08.6]} 52. Kc4 {[%clk 0:00:05.2]} 52... Ka6 {[%clk
0:00:08.8]} 53. Kd4 {[%clk 0:00:06.2]} 53... Ka5 {[%clk 0:00:09.8]} 54. Kc4
{[%clk 0:00:06.9]} 54... Ka6 {[%clk 0:00:11]} 55. Kb4 {[%clk 0:00:08.2]} 55...
Kb7 {[%clk 0:00:05.9]} 56. a5 {[%clk 0:00:07.9]} 56... Kc6 {[%clk 0:00:06.1]}
57. a6 {[%clk 0:00:08.8]} 57... Kc7 {[%clk 0:00:07.2]} 58. Kc4 {[%clk
0:00:09.7]} 58... Kc6 {[%clk 0:00:08.3]} 59. Kd4 {[%clk 0:00:10.9]} 59... Kc7
{[%clk 0:00:09.1]} 60. Ke3 {[%clk 0:00:08.5]} 60... Kc6 {[%clk 0:00:10.4]} 61.
Kf4 {[%clk 0:00:10]} 61... Kc7 {[%clk 0:00:10.8]} 62. Ke3 {[%clk 0:00:11.4]}
62... Kc6 {[%clk 0:00:12.1]} 63. Kd4 {[%clk 0:00:08.9]} 63... Kc7 {[%clk
0:00:13.3]} 64. Kc3 {[%clk 0:00:09.2]} 64... Kc6 {[%clk 0:00:14.3]} 65. Kc4
{[%clk 0:00:10.7]} 65... Kc7 {[%clk 0:00:15.5]} 66. Kd4 {[%clk 0:00:07.2]} 66...
Kc6 {[%clk 0:00:16.2]} 67. Kc4 {[%clk 0:00:08.5]} 67... Kc7 {[%clk 0:00:16.7]}
68. Kd4 {[%clk 0:00:09.7]} 68... Kc6 {[%clk 0:00:17.2]} 69. Kc4 {[%clk
0:00:11.2]} 1/2-1/2